[Event "DVM U12 2021-22"]
[Site "Naumburg"]
[Date "2022.03.26"]
[Round "3"]
[White "Etzold, Emil"]
[Black "Detjen, Mattes"]
[Result "1-0"]
[ECO "C50"]
[WhiteElo "953"]
[BlackElo "1124"]
[Annotator "NA"]
[PlyCount "47"]
[EventDate "2022.03.25"]
[EventType "team-tourn"]
[EventRounds "7"]
[EventCountry "GER"]
[SourceTitle "playchess.com"]
[Source "ChessBase"]
[SourceQuality "1"]
[TimeControl "40/5400+30:1800+30"]

1. e4 {[%emt 0:00:01]} e5 {[%emt 0:00:07]} 2. Nf3 {[%emt 0:00:04]} Nc6 {[%emt 0:00:04]} 3. Bc4 {[%emt 0:00:12]} Bc5 {[%emt 0:00:08]} 4. O-O {[%emt 0:00:22]} Nf6 {[%emt 0:00:21]} 5. b4 {[%emt 0:00:22]} Bxb4 {[%emt 0:00:26]} 6. c3 {[%emt 0:00:05]} Be7 {[%emt 0:00:23]} 7. d4 {[%emt 0:01:06]} d6 {[%emt 0:00:25]} 8. dxe5 {[%emt 0:02:19]} dxe5 {[%emt 0:00:27]} 9. Bb5 {[%emt 0:00:48]} Qxd1 10. Rxd1 {[%emt 0:00:15]} Nxe4 {[%emt 0:01:28]} 11. Nxe5 {[%emt 0:00:21]} O-O {[%emt 0:01:03]} 12. Nxc6 {[%emt 0:00:33]} bxc6 {[%emt 0:00:29]} 13. Bxc6 {[%emt 0:00:06]} Nxc3 {[%emt 0:02:25]} 14. Nxc3 {[%emt 0:00:18]} Rb8 {[%emt 0:00:14]} 15. a4 {[%emt 0:02:41]} Bf6 {[%emt 0:02:41]} 16. Ra3 {[%emt 0:03:48]} Rb6 {[%emt 0:02:13]} 17. Be4 {[%emt 0:00:51]} Re8 {[%emt 0:02:06]} 18. Nd5 {[%emt 0:04:05]} Rd6 {[%emt 0:04:17]} 19. Re3 {[%emt 0:04:27]} Bg5 {[%emt 0:01:36]} 20. Bxh7+ {[%emt 0:01:05]} Kf8 {[%emt 0:06:02]} 21. Rxe8+ {[%emt 0:00:41]} Kxe8 {[%emt 0:00:06]} 22. Bxg5 {[%emt 0:00:19]} g6 {[%emt 0:00:21]} 23. Re1+ {[%emt 0:01:39]} Kf8 {[%emt 0:00:22]} 24. Bh6# {[%emt 0:00:11]} 1-0

[Event "DVM U12 2021-22"]
[Site "Naumburg"]
[Date "2022.03.26"]
[Round "3"]
[White "Könnecke, Maximilian"]
[Black "Cwiklik, Julian"]
[Result "0-1"]
[ECO "A40"]
[WhiteElo "929"]
[BlackElo "1255"]
[Annotator "NA"]
[PlyCount "80"]
[EventDate "2022.03.25"]
[EventType "team-tourn"]
[EventRounds "7"]
[EventCountry "GER"]
[SourceTitle "playchess.com"]
[Source "ChessBase"]
[SourceQuality "1"]
[TimeControl "40/5400+30:1800+30"]

1. d4 {[%emt 0:00:01]} e6 {[%emt 0:00:05]} 2. Nf3 {[%emt 0:00:20]} d5 {[%emt 0:00:10]} 3. Bf4 {[%emt 0:00:36]} c5 {[%emt 0:00:28]} 4. e3 {[%emt 0:01:37]} Nc6 {[%emt 0:00:29]} 5. Bb5 {[%emt 0:00:55]} cxd4 {[%emt 0:00:20]} 6. Nxd4 {[%emt 0:00:59]} Bd7 {[%emt 0:00:06]} 7. Nc3 {[%emt 0:03:18]} Nxd4 {[%emt 0:00:18]} 8. Bxd7+ {[%emt 0:00:10]} Qxd7 {[%emt 0:00:08]} 9. Qxd4 {[%emt 0:00:09]} Nf6 {[%emt 0:00:29]} 10. Be5 {[%emt 0:01:11]} Be7 {[%emt 0:00:13]} 11. Bxf6 {[%emt 0:05:46]} Bxf6 {[%emt 0:00:38]} 12. Qb4 {[%emt 0:00:28]} Qc6 {[%emt 0:00:41]} 13. O-O {[%emt 0:00:40]} Rc8 {[%emt 0:00:04]} 14. Na4 {[%emt 0:07:25]} a6 {[%emt 0:01:13]} 15. Qa5 {[%emt 0:04:10]} O-O {[%emt 0:01:09]} 16. c3 {[%emt 0:05:02]} b5 {[%emt 0:00:53]} 17. Nb6 {[%emt 0:00:17]} Rb8 {[%emt 0:00:23]} 18. Nd7 {[%emt 0:03:36]} Qxd7 {[%emt 0:00:26]} 19. Qxa6 {[%emt 0:00:10]} b4 {[%emt 0:00:10]} 20. Rab1 {[%emt 0:02:33]} bxc3 {[%emt 0:00:37]} 21. bxc3 {[%emt 0:00:44]} Ra8 {[%emt 0:00:05]} 22. Qe2 {[%emt 0:00:33]} Bxc3 {[%emt 0:00:13]} 23. Qc2 {[%emt 0:00:41]} Bf6 {[%emt 0:00:13]} 24. f4 {[%emt 0:04:19]} Qa4 {[%emt 0:00:37]} 25. Qd3 {[%emt 0:00:36]} d4 {[%emt 0:00:41]} 26. Rf3 {[%emt 0:00:27]} dxe3 {[%emt 0:00:57]} 27. Rh3 {[%emt 0:00:19]} g6 {[%emt 0:02:30]} 28. Qxe3 {[%emt 0:00:26]} Bd4 {[%emt 0:00:53]} 29. Qxd4 {[%emt 0:00:08]} Qxd4+ {[%emt 0:00:00]} 30. Kf1 {[%emt 0:04:53]} Qxf4+ {[%emt 0:00:00]} 31. Rf3 {[%emt 0:01:52]} Qxh2 {[%emt 0:00:26]} 32. Kf2 {[%emt 0:00:18]} Rxa2+ {[%emt 0:00:12]} 33. Ke3 {[%emt 0:00:24]} Qxg2 {[%emt 0:00:52]} 34. Kf4 {[%emt 0:00:42]} g5+ {[%emt 0:00:27]} 35. Ke4 {[%emt 0:00:25]} Qe2+ {[%emt 0:00:24]} 36. Re3 {[%emt 0:00:17]} Ra4+ {[%emt 0:00:05]} 37. Rb4 {[%emt 0:00:25]} Rxb4+ {[%emt 0:00:24]} 38. Ke5 Qxe3+ 39. Kf6 {[%emt 0:00:53]} Qf4+ {[%emt 0:01:23]} 40. Ke7 {[%emt 0:00:17]} Rb7# 0-1

[Event "DVM U12 2021-22"]
[Site "Naumburg"]
[Date "2022.03.27"]
[Round "4"]
[White "Ermitsch, Magnus"]
[Black "Braun, Julian"]
[Result "0-1"]
[ECO "C84"]
[WhiteElo "2127"]
[BlackElo "1620"]
[Annotator "ChessBase"]
[PlyCount "74"]
[EventDate "2022.03.25"]
[EventType "team-tourn"]
[EventRounds "7"]
[EventCountry "GER"]
[SourceTitle "playchess.com"]
[Source "ChessBase"]
[SourceQuality "1"]
[TimeControl "40/5400+30:1800+30"]

1. e4 {[%emt 0:00:02]} e5 {[%emt 0:00:01]} 2. Nf3 {[%emt 0:00:10]} Nc6 {[%emt 0:00:01]} 3. Bb5 {[%emt 0:00:08]} a6 {[%emt 0:00:06]} 4. Ba4 {[%emt 0:00:05]} Nf6 {[%emt 0:00:02]} 5. O-O {[%emt 0:00:09]} Be7 {[%emt 0:00:04]} 6. d3 {[%emt 0:00:06]} d6 {[%emt 0:00:11]} 7. c3 {[%emt 0:00:18]} b5 {[%emt 0:00:37]} 8. Bb3 {[%emt 0:01:11]} O-O {[%emt 0:01:04]} 9. a4 {[%emt 0:00:36]} Bb7 {[%emt 0:03:14]} 10. Bg5 {[%emt 0:00:57]} h6 {[%emt 0:02:07]} 11. Bxf6 {[%emt 0:00:38]} Bxf6 {[%emt 0:00:11]} 12. Na3 {[%emt 0:03:32]} b4 {[%emt 0:03:23]} 13. Nc4 {[%emt 0:01:36]} bxc3 {[%emt 0:02:24]} 14. bxc3 {[%emt 0:00:17]} Re8 {[%emt 0:01:38]} 15. Qb1 {[%emt 0:08:25]} Rb8 {[%emt 0:02:24]} 16. Qa2 {[%emt 0:00:35]} Qd7 {[%emt 0:03:10]} 17. Rab1 {[%emt 0:06:53]} Bc8 {[%emt 0:07:34]} 18. Ne3 {[%emt 0:02:43]} Ra8 {[%emt 0:04:25]} 19. a5 {[%emt 0:02:37]} Nd8 {[%emt 0:13:46]} 20. Ba4 {[%emt 0:02:45]} c6 {[%emt 0:00:10]} 21. Nd5 {[%emt 0:00:46]} Qe6 {[%emt 0:02:26]} 22. Bb3 {[%emt 0:00:41]} cxd5 {[%emt 0:01:06]} 23. Bxd5 {[%emt 0:00:08]} Qg4 {[%emt 0:00:41]} 24. Bxa8 {[%emt 0:00:25]} Ne6 {[%emt 0:00:58]} 25. Ne1 {[%emt 0:02:19]} Nf4 {[%emt 0:03:05]} 26. f3 {[%emt 0:00:22]} Qg6 {[%emt 0:01:57]} 27. Bc6 {[%emt 0:01:29]} Be6 {[%emt 0:02:15]} 28. Qf2 {[%emt 0:01:05]} Nh3+ {[%emt 0:00:41]} 29. Kh1 {[%emt 0:00:03]} Nxf2+ {[%emt 0:00:21]} 30. Rxf2 {[%emt 0:00:01]} Rc8 {[%emt 0:01:50]} 31. Rb6 {[%emt 0:00:14]} Qg5 {[%emt 0:02:45]} 32. Rf1 {[%emt 0:04:33]} Qe3 {[%emt 0:02:31]} 33. Rxa6 {[%emt 0:00:53]} Qe2 {[%emt 0:00:54]} 34. Rg1 {[%emt 0:00:46]} Bg5 {[%emt 0:01:01]} 35. f4 {[%emt 0:00:08]} Bxf4 {[%emt 0:00:25]} 36. Nf3 {[%emt 0:00:57]} Qxd3 {[%emt 0:01:07]} 37. Bb7 {[%emt 0:00:02]} Rb8 {[%emt 0:00:54]} 0-1

[Event "DVM U12 2021-22"]
[Site "Naumburg"]
[Date "2022.03.27"]
[Round "4"]
[White "Haubold, Sebastian Marcel"]
[Black "Middendorf, Sven-Jonas"]
[Result "1-0"]
[ECO "C77"]
[WhiteElo "1869"]
[BlackElo "1424"]
[Annotator "NA"]
[PlyCount "83"]
[EventDate "2022.03.25"]
[EventType "team-tourn"]
[EventRounds "7"]
[EventCountry "GER"]
[SourceTitle "playchess.com"]
[Source "ChessBase"]
[SourceQuality "1"]
[TimeControl "40/5400+30:1800+30"]

1. e4 {[%emt 0:00:03]} e5 {[%emt 0:00:03]} 2. Nf3 {[%emt 0:00:04]} Nc6 {[%emt 0:00:04]} 3. Bb5 {[%emt 0:00:05]} a6 {[%emt 0:00:03]} 4. Ba4 {[%emt 0:00:05]} Nf6 {[%emt 0:00:02]} 5. d4 {[%emt 0:00:06]} exd4 {[%emt 0:00:20]} 6. O-O {[%emt 0:00:08]} Be7 {[%emt 0:00:32]} 7. Re1 {[%emt 0:00:08]} b5 {[%emt 0:00:34]} 8. e5 {[%emt 0:00:06]} Nd5 {[%emt 0:10:45]} 9. Bb3 {[%emt 0:01:05]} Nb6 {[%emt 0:00:11]} 10. Nxd4 {[%emt 0:03:58]} Nxd4 {[%emt 0:01:14]} 11. Qxd4 {[%emt 0:00:06]} c5 {[%emt 0:00:38]} 12. Qg4 {[%emt 0:00:01]} g6 {[%emt 0:20:06]} 13. c3 {[%emt 0:13:35]} d5 {[%emt 0:09:21]} 14. Qf3 {[%emt 0:03:14]} c4 {[%emt 0:01:03]} 15. Bc2 {[%emt 0:00:12]} Bc5 {[%emt 0:04:38]} 16. Bh6 {[%emt 0:04:56]} Rg8 {[%emt 0:07:26]} 17. Nd2 {[%emt 0:07:00]} Qh4 {[%emt 0:08:28]} 18. Be3 {[%emt 0:03:22]} Bxe3 {[%emt 0:05:28]} 19. Qxe3 {[%emt 0:00:04]} Qd8 {[%emt 0:00:12]} 20. Qh6 {[%emt 0:01:02]} Rf8 {[%emt 0:07:17]} 21. Qxh7 {[%emt 0:02:10]} Be6 {[%emt 0:00:23]} 22. Nf3 {[%emt 0:00:47]} Nd7 {[%emt 0:01:31]} 23. Nd4 {[%emt 0:01:36]} Nc5 {[%emt 0:00:44]} 24. Qh6 {[%emt 0:01:31]} Qc7 {[%emt 0:02:04]} 25. Rad1 {[%emt 0:00:55]} O-O-O $18 {[%emt 0:03:42]} 26. b4 {[%emt 0:02:15]} cxb3 {[%emt 0:02:16]} 27. axb3 {[%emt 0:00:08]} Qd7 {[%emt 0:02:55]} 28. b4 {[%emt 0:00:37]} Nb7 {[%emt 0:00:13]} 29. Ra1 {[%emt 0:00:08]} Qc7 {[%emt 0:02:23]} 30. Rxa6 {[%emt 0:00:08]} Qxc3 {[%emt 0:00:57]} 31. Rc6+ {[%emt 0:00:11]} Qxc6 {[%emt 0:00:14]} 32. Nxc6 {[%emt 0:00:08]} Rde8 {[%emt 0:01:25]} 33. Na7+ {[%emt 0:00:08]} Kb8 {[%emt 0:00:31]} 34. Nxb5 {[%emt 0:00:06]} Rh8 {[%emt 0:00:47]} 35. Qe3 {[%emt 0:00:20]} Kc8 {[%emt 0:00:40]} 36. Nd6+ {[%emt 0:00:10]} Nxd6 {[%emt 0:00:04]} 37. exd6 {[%emt 0:00:06]} Bd7 {[%emt 0:00:26]} 38. Qc5+ {[%emt 0:00:07]} Kb7 {[%emt 0:00:21]} 39. Qc7+ {[%emt 0:00:09]} Ka6 {[%emt 0:00:04]} 40. Ra1+ {[%emt 0:00:09]} Ba4 {[%emt 0:00:14]} 41. Rxa4+ {[%emt 0:30:09]} Kb5 {[%emt 0:30:00]} 42. Qc5# 1-0

[Event "DVM U12 2021-22"]
[Site "Naumburg"]
[Date "2022.03.27"]
[Round "4"]
[White "Lu, Yunong Elias"]
[Black "Torosyan, Bagrat"]
[Result "1-0"]
[ECO "B52"]
[WhiteElo "1677"]
[BlackElo "1695"]
[Annotator "NA"]
[PlyCount "59"]
[EventDate "2022.03.25"]
[EventType "team-tourn"]
[EventRounds "7"]
[EventCountry "GER"]
[SourceTitle "playchess.com"]
[Source "ChessBase"]
[SourceQuality "1"]
[TimeControl "40/5400+30:1800+30"]

1. e4 {[%emt 0:00:03]} c5 {[%emt 0:00:04]} 2. Nf3 {[%emt 0:00:31]} d6 {[%emt 0:00:05]} 3. Bb5+ {[%emt 0:00:21]} Bd7 {[%emt 0:00:05]} 4. c4 {[%emt 0:00:14]} Nf6 {[%emt 0:01:54]} 5. Nc3 {[%emt 0:01:53]} Bxb5 {[%emt 0:02:11]} 6. cxb5 {[%emt 0:01:30]} g6 {[%emt 0:00:47]} 7. O-O {[%emt 0:02:35]} Bg7 {[%emt 0:01:16]} 8. d4 {[%emt 0:04:11]} cxd4 {[%emt 0:01:57]} 9. Nxd4 {[%emt 0:01:44]} Nbd7 {[%emt 0:02:12]} 10. a4 {[%emt 0:02:31]} O-O {[%emt 0:11:33]} 11. a5 {[%emt 0:04:14]} Nc5 {[%emt 0:04:36]} 12. Re1 {[%emt 0:09:59]} Qd7 {[%emt 0:04:53]} 13. f3 {[%emt 0:08:20]} Ne6 {[%emt 0:02:11]} 14. Be3 {[%emt 0:02:27]} Nxd4 {[%emt 0:02:30]} 15. Bxd4 {[%emt 0:03:11]} Rfd8 {[%emt 0:02:08]} 16. Kh1 {[%emt 0:03:05]} Ne8 {[%emt 0:01:52]} 17. Bxg7 {[%emt 0:01:14]} Nxg7 {[%emt 0:00:23]} 18. Nd5 {[%emt 0:01:25]} Ne6 {[%emt 0:00:34]} 19. b6 {[%emt 0:01:48]} a6 {[%emt 0:00:14]} 20. Rc1 {[%emt 0:02:08]} Rac8 {[%emt 0:01:35]} 21. Qd2 {[%emt 0:03:15]} Rc6 {[%emt 0:07:03]} 22. Rxc6 {[%emt 0:01:38]} bxc6 {[%emt 0:00:15]} 23. Nb4 {[%emt 0:01:17]} Qb7 {[%emt 0:00:40]} 24. Rc1 {[%emt 0:02:31]} c5 {[%emt 0:01:47]} 25. Nd5 {[%emt 0:03:00]} Nd4 {[%emt 0:01:50]} 26. Qd3 {[%emt 0:04:54]} Nc6 {[%emt 0:06:52]} 27. b4 {[%emt 0:01:49]} cxb4 {[%emt 0:02:28]} 28. Rxc6 {[%emt 0:00:16]} e6 {[%emt 0:03:48]} 29. Rc7 {[%emt 0:00:30]} Rc8 {[%emt 0:00:41]} 30. Rxc8+ 1-0

[Event "DVM U12 2021-22"]
[Site "Naumburg"]
[Date "2022.03.27"]
[Round "4"]
[White "Dordevic, Tom"]
[Black "Friedrich, Timofej"]
[Result "1-0"]
[ECO "A06"]
[WhiteElo "1671"]
[BlackElo "1377"]
[Annotator "NA"]
[PlyCount "83"]
[EventDate "2022.03.25"]
[EventType "team-tourn"]
[EventRounds "7"]
[EventCountry "GER"]
[SourceTitle "playchess.com"]
[Source "ChessBase"]
[SourceQuality "1"]
[TimeControl "40/5400+30:1800+30"]

1. Nf3 {[%emt 0:00:05]} d5 {[%emt 0:00:15]} 2. g3 {[%emt 0:00:04]} c6 {[%emt 0:00:27]} 3. Bg2 {[%emt 0:00:04]} Nf6 {[%emt 0:00:09]} 4. O-O {[%emt 0:00:07]} Bf5 {[%emt 0:00:10]} 5. c4 {[%emt 0:00:07]} e6 {[%emt 0:00:13]} 6. cxd5 {[%emt 0:00:08]} exd5 {[%emt 0:00:07]} 7. d3 {[%emt 0:00:05]} Bg6 {[%emt 0:01:29]} 8. Qb3 {[%emt 0:00:48]} Qb6 {[%emt 0:00:16]} 9. Qc2 {[%emt 0:00:30]} Nbd7 {[%emt 0:00:43]} 10. Nc3 {[%emt 0:00:59]} Bd6 {[%emt 0:02:52]} 11. e4 {[%emt 0:08:05]} dxe4 {[%emt 0:00:25]} 12. dxe4 {[%emt 0:00:09]} O-O {[%emt 0:00:33]} 13. Be3 {[%emt 0:01:52]} Qc7 {[%emt 0:02:01]} 14. h3 {[%emt 0:03:00]} Rfe8 {[%emt 0:01:11]} 15. Nh4 {[%emt 0:03:10]} Nf8 {[%emt 0:09:40]} 16. f4 {[%emt 0:14:50]} Nd5 {[%emt 0:05:46]} 17. Nxd5 {[%emt 0:00:39]} cxd5 {[%emt 0:00:15]} 18. Qxc7 {[%emt 0:00:15]} Bxc7 {[%emt 0:00:14]} 19. e5 {[%emt 0:00:34]} Be4 {[%emt 0:00:39]} 20. Bxe4 {[%emt 0:06:41]} dxe4 {[%emt 0:00:24]} 21. Rac1 {[%emt 0:00:29]} Rac8 {[%emt 0:02:10]} 22. Nf5 {[%emt 0:02:25]} b6 {[%emt 0:04:08]} 23. Rf2 {[%emt 0:06:02]} Ne6 {[%emt 0:01:38]} 24. Rfc2 {[%emt 0:02:32]} Rcd8 {[%emt 0:02:41]} 25. Rxc7 {[%emt 0:04:16]} Nxc7 {[%emt 0:00:33]} 26. Rxc7 {[%emt 0:00:04]} Kf8 {[%emt 0:01:38]} 27. Rxa7 {[%emt 0:02:35]} g6 {[%emt 0:04:51]} 28. Nd6 {[%emt 0:01:05]} Re7 {[%emt 0:01:55]} 29. Rxe7 {[%emt 0:12:09]} Kxe7 {[%emt 0:00:22]} 30. Bxb6 {[%emt 0:00:06]} Rb8 {[%emt 0:00:40]} 31. Bd4 {[%emt 0:00:10]} Ra8 {[%emt 0:01:29]} 32. a3 {[%emt 0:00:59]} Ra4 {[%emt 0:00:40]} 33. Bc3 {[%emt 0:01:25]} Ke6 {[%emt 0:02:03]} 34. Kf2 {[%emt 0:00:46]} Kd5 {[%emt 0:01:39]} 35. Nxf7 {[%emt 0:00:38]} Kc4 {[%emt 0:00:56]} 36. Ke3 {[%emt 0:00:46]} Kd5 {[%emt 0:00:11]} 37. Nd6 {[%emt 0:00:23]} h6 {[%emt 0:00:45]} 38. g4 {[%emt 0:00:52]} g5 {[%emt 0:00:28]} 39. f5 {[%emt 0:00:13]} Ra8 {[%emt 0:02:37]} 40. Nxe4 {[%emt 0:00:26]} Rf8 {[%emt 0:00:15]} 41. Nf6+ {[%emt 0:30:46]} Kc6 {[%emt 0:32:19]} 42. e6 {[%emt 0:00:21]} 1-0

[Event "DVM U12 2021-22"]
[Site "Naumburg"]
[Date "2022.03.27"]
[Round "4"]
[White "Wartenberg, Alexander"]
[Black "Ruddat, Jarne"]
[Result "1-0"]
[ECO "B38"]
[WhiteElo "1639"]
[BlackElo "1419"]
[Annotator "NA"]
[PlyCount "87"]
[EventDate "2022.03.25"]
[EventType "team-tourn"]
[EventRounds "7"]
[EventCountry "GER"]
[SourceTitle "playchess.com"]
[Source "ChessBase"]
[SourceQuality "1"]
[TimeControl "40/5400+30:1800+30"]

1. e4 {[%emt 0:00:03]} c5 {[%emt 0:00:01]} 2. Nf3 {[%emt 0:00:09]} g6 {[%emt 0:00:04]} 3. c4 {[%emt 0:00:20]} Bg7 {[%emt 0:00:05]} 4. d4 {[%emt 0:00:08]} cxd4 {[%emt 0:00:03]} 5. Nxd4 {[%emt 0:00:09]} Nc6 {[%emt 0:00:14]} 6. Be3 {[%emt 0:00:17]} Nf6 {[%emt 0:00:08]} 7. Nc3 {[%emt 0:00:10]} O-O {[%emt 0:00:07]} 8. Be2 {[%emt 0:00:27]} d6 {[%emt 0:00:05]} 9. O-O {[%emt 0:01:36]} Nxd4 {[%emt 0:00:12]} 10. Bxd4 {[%emt 0:00:15]} Bd7 {[%emt 0:00:59]} 11. Bf3 {[%emt 0:15:24]} Bc6 {[%emt 0:00:33]} 12. Qc2 {[%emt 0:02:07]} Nd7 {[%emt 0:00:30]} 13. Bxg7 {[%emt 0:05:41]} Kxg7 {[%emt 0:00:06]} 14. b3 {[%emt 0:00:25]} a5 {[%emt 0:02:33]} 15. a3 {[%emt 0:01:34]} Qb6 {[%emt 0:02:00]} 16. g3 {[%emt 0:08:03]} Rfc8 {[%emt 0:01:59]} 17. a4 {[%emt 0:01:43]} h5 {[%emt 0:02:23]} 18. Bg2 {[%emt 0:01:26]} Kh7 {[%emt 0:01:04]} 19. Kh1 {[%emt 0:05:32]} Nc5 {[%emt 0:02:58]} 20. Rab1 {[%emt 0:00:49]} Qd8 {[%emt 0:02:05]} 21. f4 {[%emt 0:03:59]} Qh8 {[%emt 0:00:51]} 22. f5 {[%emt 0:01:53]} Qg7 {[%emt 0:01:13]} 23. Nd5 {[%emt 0:10:48]} Bxd5 {[%emt 0:00:50]} 24. exd5 {[%emt 0:00:19]} Rf8 {[%emt 0:00:51]} 25. Bh3 {[%emt 0:07:01]} Rae8 {[%emt 0:02:58]} 26. Rbe1 {[%emt 0:01:29]} Na6 {[%emt 0:04:37]} 27. Qe4 {[%emt 0:04:16]} Nc5 {[%emt 0:01:40]} 28. Qe3 {[%emt 0:02:31]} g5 {[%emt 0:06:11]} 29. Bg2 {[%emt 0:09:49]} f6 {[%emt 0:00:23]} 30. Qc3 {[%emt 0:00:46]} Ra8 {[%emt 0:00:22]} 31. Re2 {[%emt 0:00:32]} Ra7 {[%emt 0:03:47]} 32. Rfe1 {[%emt 0:00:57]} Re8 {[%emt 0:00:15]} 33. Bf3 {[%emt 0:00:34]} Kh6 {[%emt 0:00:16]} 34. Qe3 {[%emt 0:01:11]} b6 {[%emt 0:00:17]} 35. h4 {[%emt 0:00:23]} Rb7 {[%emt 0:00:52]} 36. Rh2 {[%emt 0:00:44]} Kh7 {[%emt 0:04:03]} 37. hxg5 {[%emt 0:01:37]} Kg8 {[%emt 0:00:50]} 38. Bxh5 {[%emt 0:00:34]} Reb8 {[%emt 0:00:55]} 39. Bg6 {[%emt 0:02:06]} e5 {[%emt 0:02:42]} 40. dxe6 {[%emt 0:00:41]} Re7 {[%emt 0:00:08]} 41. Rh7 {[%emt 0:30:57]} Qf8 {[%emt 0:30:05]} 42. Rxe7 {[%emt 0:00:20]} Qxe7 {[%emt 0:00:11]} 43. gxf6 {[%emt 0:00:15]} Qxf6 {[%emt 0:00:09]} 44. e7 {[%emt 0:00:19]} 1-0

[Event "DVM U12 2021-22"]
[Site "Naumburg"]
[Date "2022.03.27"]
[Round "4"]
[White "Fruth, David"]
[Black "Koberstein, Simon"]
[Result "1-0"]
[ECO "B21"]
[WhiteElo "1607"]
[BlackElo "1462"]
[Annotator "NA"]
[PlyCount "103"]
[EventDate "2022.03.25"]
[EventType "team-tourn"]
[EventRounds "7"]
[EventCountry "GER"]
[SourceTitle "playchess.com"]
[Source "ChessBase"]
[SourceQuality "1"]
[TimeControl "40/5400+30:1800+30"]

1. e4 {[%emt 0:02:42]} c5 {[%emt 0:00:10]} 2. d4 {[%emt 0:00:16]} cxd4 {[%emt 0:00:08]} 3. c3 {[%emt 0:00:18]} dxc3 {[%emt 0:00:14]} 4. Nxc3 {[%emt 0:00:05]} g6 {[%emt 0:00:12]} 5. Nf3 {[%emt 0:00:35]} Bg7 {[%emt 0:00:09]} 6. Bc4 {[%emt 0:00:56]} Nc6 {[%emt 0:00:42]} 7. O-O {[%emt 0:00:54]} d6 {[%emt 0:00:30]} 8. Qe2 {[%emt 0:01:06]} Bg4 {[%emt 0:01:00]} 9. Bxf7+ {[%emt 0:00:29]} Kxf7 {[%emt 0:00:28]} 10. Ng5+ {[%emt 0:00:05]} Ke8 {[%emt 0:00:25]} 11. Qxg4 {[%emt 0:00:08]} Nf6 {[%emt 0:00:36]} 12. Qe6 {[%emt 0:01:07]} Rf8 {[%emt 0:01:02]} 13. Qb3 {[%emt 0:01:03]} Qd7 {[%emt 0:02:05]} 14. Ne6 {[%emt 0:01:18]} Rf7 {[%emt 0:01:27]} 15. Nd5 {[%emt 0:01:02]} Rc8 {[%emt 0:03:48]} 16. Qh3 {[%emt 0:02:13]} Nd8 {[%emt 0:03:56]} 17. Nxg7+ {[%emt 0:03:01]} Rxg7 {[%emt 0:00:14]} 18. Qd3 {[%emt 0:02:40]} Ne6 {[%emt 0:02:28]} 19. Rd1 {[%emt 0:01:11]} Rd8 {[%emt 0:02:07]} 20. b3 {[%emt 0:01:25]} Rf7 {[%emt 0:02:14]} 21. Bb2 {[%emt 0:00:39]} Nc5 {[%emt 0:05:03]} 22. Nxf6+ {[%emt 0:00:14]} exf6 {[%emt 0:00:17]} 23. Qe3 {[%emt 0:00:14]} Qe6 {[%emt 0:03:17]} 24. Ba3 {[%emt 0:01:53]} b6 {[%emt 0:02:58]} 25. Bxc5 {[%emt 0:01:26]} dxc5 {[%emt 0:01:24]} 26. Qc3 {[%emt 0:01:24]} Rfd7 {[%emt 0:01:04]} 27. Re1 {[%emt 0:00:20]} Re7 {[%emt 0:03:01]} 28. f4 {[%emt 0:00:34]} Rd4 {[%emt 0:01:32]} 29. g3 {[%emt 0:02:24]} Rxe4 {[%emt 0:01:08]} 30. Rxe4 {[%emt 0:00:30]} Qxe4 {[%emt 0:00:06]} 31. Qxf6 {[%emt 0:00:09]} Qe3+ {[%emt 0:04:10]} 32. Kg2 {[%emt 0:00:10]} Qe4+ 33. Kh3 Qe6+ {[%emt 0:01:57]} 34. Qxe6 {[%emt 0:00:34]} Rxe6 {[%emt 0:00:09]} 35. Kg4 {[%emt 0:00:05]} Kf7 {[%emt 0:00:13]} 36. Kf3 {[%emt 0:00:06]} Kf6 {[%emt 0:00:34]} 37. Rd1 {[%emt 0:00:07]} h5 {[%emt 0:00:49]} 38. h3 {[%emt 0:00:08]} a5 {[%emt 0:01:40]} 39. g4 {[%emt 0:01:21]} hxg4+ {[%emt 0:00:48]} 40. hxg4 {[%emt 0:00:07]} Rc6 {[%emt 0:00:52]} 41. a4 {[%emt 0:30:14]} c4 {[%emt 0:30:07]} 42. Rc1 {[%emt 0:01:02]} Ke6 {[%emt 0:00:29]} 43. Rxc4 {[%emt 0:00:31]} Rd6 {[%emt 0:00:15]} 44. Ke4 {[%emt 0:00:22]} Rd5 {[%emt 0:00:37]} 45. Rc6+ {[%emt 0:00:39]} Rd6 {[%emt 0:00:08]} 46. f5+ {[%emt 0:00:05]} gxf5+ {[%emt 0:00:12]} 47. gxf5+ {[%emt 0:00:01]} Ke7 {[%emt 0:00:07]} 48. Rxd6 {[%emt 0:00:05]} Kxd6 {[%emt 0:00:05]} 49. Kd4 {[%emt 0:00:04]} Kd7 {[%emt 0:00:28]} 50. Kd5 {[%emt 0:00:01]} Kd8 {[%emt 0:00:13]} 51. Ke6 {[%emt 0:00:08]} Ke8 {[%emt 0:00:08]} 52. f6 {[%emt 0:00:02]} 1-0

[Event "DVM U12 2021-22"]
[Site "Naumburg"]
[Date "2022.03.27"]
[Round "4"]
[White "Zobel, Christian"]
[Black "Wartenberg, Alissa"]
[Result "1-0"]
[ECO "C54"]
[WhiteElo "1547"]
[BlackElo "1670"]
[Annotator "NA"]
[PlyCount "51"]
[EventDate "2022.03.25"]
[EventType "team-tourn"]
[EventRounds "7"]
[EventCountry "GER"]
[SourceTitle "playchess.com"]
[Source "ChessBase"]
[SourceQuality "1"]
[TimeControl "40/5400+30:1800+30"]

1. e4 {[%emt 0:00:03]} e5 {[%emt 0:00:05]} 2. Nf3 {[%emt 0:00:05]} Nc6 {[%emt 0:00:03]} 3. Bc4 {[%emt 0:00:04]} Bc5 {[%emt 0:00:04]} 4. c3 {[%emt 0:00:09]} Nf6 {[%emt 0:00:08]} 5. d3 {[%emt 0:00:34]} d6 {[%emt 0:00:44]} 6. O-O {[%emt 0:00:12]} h6 {[%emt 0:00:04]} 7. Nbd2 {[%emt 0:01:33]} O-O {[%emt 0:00:40]} 8. h3 {[%emt 0:00:32]} a6 {[%emt 0:01:16]} 9. Bb3 {[%emt 0:00:04]} Ba7 {[%emt 0:00:08]} 10. Re1 {[%emt 0:00:50]} Ne7 {[%emt 0:01:03]} 11. Nf1 {[%emt 0:04:29]} Ng6 {[%emt 0:00:36]} 12. Ng3 {[%emt 0:00:57]} Re8 {[%emt 0:09:48]} 13. Be3 {[%emt 0:01:59]} Bd7 {[%emt 0:11:02]} 14. Qd2 {[%emt 0:03:11]} Bxe3 {[%emt 0:06:21]} 15. fxe3 {[%emt 0:02:09]} Bc6 {[%emt 0:02:27]} 16. c4 {[%emt 0:06:10]} Qd7 {[%emt 0:04:36]} 17. Rf1 {[%emt 0:03:31]} b5 {[%emt 0:04:52]} 18. Nh2 {[%emt 0:07:16]} Rf8 {[%emt 0:04:04]} 19. Rxf6 {[%emt 0:06:31]} gxf6 {[%emt 0:01:04]} 20. Ng4 {[%emt 0:00:58]} Qd8 {[%emt 0:00:54]} 21. Nxh6+ {[%emt 0:01:15]} Kh7 {[%emt 0:00:32]} 22. Qe2 {[%emt 0:00:25]} Kxh6 {[%emt 0:04:38]} 23. Qh5+ {[%emt 0:00:07]} Kg7 {[%emt 0:00:05]} 24. Nf5+ {[%emt 0:00:03]} Kg8 {[%emt 0:00:05]} 25. Qh6 {[%emt 0:00:06]} Qe7 {[%emt 0:00:08]} 26. Qg7# 1-0